[Event "*** Titled Tuesday Blitz"]
[Site "Chess.com"]
[Date "2020.02.04"]
[Round "4"]
[White "almaguerjm"]
[Black "Alexander_Moskalenko"]
[Result "1-0"]
[WhiteElo "2413"]
[BlackElo "2815"]
[TimeControl "180+2"]
[EndTime "13:51:12 PST"]
[Termination "almaguerjm won on time"]

1. d4 {[%clk 0:02:54.9]} 1... g6 {[%clk 0:03:01.9]} 2. Nf3 {[%clk 0:02:53.6]}
2... Bg7 {[%clk 0:03:03.8]} 3. e4 {[%clk 0:02:54.4]} 3... d6 {[%clk 0:03:04]} 4.
Bg5 {[%clk 0:02:54]} 4... c6 {[%clk 0:02:58.3]} 5. Bc4 {[%clk 0:02:49.7]} 5...
Qb6 {[%clk 0:02:58]} 6. Bb3 {[%clk 0:02:49.7]} 6... a5 {[%clk 0:02:57.4]} 7. a4
{[%clk 0:02:46.5]} 7... Bg4 {[%clk 0:02:54.8]} 8. Be3 {[%clk 0:02:40.3]} 8...
Bxf3 {[%clk 0:02:23.4]} 9. Qxf3 {[%clk 0:02:37.1]} 9... Nf6 {[%clk 0:02:14.6]}
10. e5 {[%clk 0:02:34.2]} 10... Nd5 {[%clk 0:02:12.3]} 11. Nc3 {[%clk 0:02:31]}
11... e6 {[%clk 0:02:10.5]} 12. exd6 {[%clk 0:02:28.6]} 12... O-O {[%clk
0:02:06.9]} 13. Ne4 {[%clk 0:02:28.7]} 13... Nd7 {[%clk 0:02:02.9]} 14. Rd1
{[%clk 0:02:19.4]} 14... Nxe3 {[%clk 0:01:47.4]} 15. fxe3 {[%clk 0:02:17.9]}
15... Qb4+ {[%clk 0:01:48.4]} 16. Ke2 {[%clk 0:01:53.9]} 16... Rae8 {[%clk
0:01:20.5]} 17. Rhf1 {[%clk 0:01:52]} 17... f5 {[%clk 0:00:46.2]} 18. Qh3 {[%clk
0:01:01.4]} 18... Nf6 {[%clk 0:00:27.6]} 19. Nc5 {[%clk 0:00:56.9]} 19... Nd5
{[%clk 0:00:24.6]} 20. c3 {[%clk 0:00:51.5]} 20... Qb6 {[%clk 0:00:25.3]} 21.
Rd2 {[%clk 0:00:52.4]} 21... Qd8 {[%clk 0:00:20.8]} 22. e4 {[%clk 0:00:43.6]}
22... fxe4 {[%clk 0:00:20.3]} 23. Nxe6 {[%clk 0:00:39.9]} 23... Qxd6 {[%clk
0:00:17.2]} 24. Nxf8 {[%clk 0:00:37.9]} 24... Bxf8 {[%clk 0:00:17.1]} 25. Qg3
{[%clk 0:00:28.4]} 25... Qe6 {[%clk 0:00:16.7]} 26. c4 {[%clk 0:00:27.2]} 26...
Nb4 {[%clk 0:00:15.5]} 27. d5 {[%clk 0:00:28]} 27... cxd5 {[%clk 0:00:16.2]} 28.
cxd5 {[%clk 0:00:29.9]} 28... Qa6+ {[%clk 0:00:16.8]} 29. Ke1 {[%clk 0:00:29.7]}
29... Nd3+ {[%clk 0:00:14.2]} 30. Kd1 {[%clk 0:00:30.8]} 30... Bh6 {[%clk
0:00:12.6]} 31. d6+ {[%clk 0:00:30.7]} 31... Kh8 {[%clk 0:00:14.2]} 32. d7
{[%clk 0:00:30.1]} 32... Rd8 {[%clk 0:00:15.3]} 33. Rxd3 {[%clk 0:00:23.7]}
33... Qxd3+ {[%clk 0:00:14]} 34. Qxd3 {[%clk 0:00:24.4]} 34... exd3 {[%clk
0:00:15.9]} 35. Be6 {[%clk 0:00:25.4]} 35... Bg5 {[%clk 0:00:15.9]} 36. Rf3
{[%clk 0:00:25.4]} 36... d2 {[%clk 0:00:16.8]} 37. g3 {[%clk 0:00:26.2]} 37...
Kg7 {[%clk 0:00:17.2]} 38. h4 {[%clk 0:00:27.4]} 38... Bh6 {[%clk 0:00:18.5]}
39. Rf7+ {[%clk 0:00:26.9]} 39... Kh8 {[%clk 0:00:19.8]} 40. Re7 {[%clk
0:00:27.7]} 40... Re8 {[%clk 0:00:02.6]} 41. dxe8=Q+ {[%clk 0:00:25.3]} 1-0

[Event "*** Titled Tuesday Blitz"]
[Site "Chess.com"]
[Date "2020.02.04"]
[Round "4"]
[White "Funkmaus"]
[Black "djano"]
[Result "0-1"]
[WhiteElo "2176"]
[BlackElo "2377"]
[TimeControl "180+2"]
[EndTime "13:51:13 PST"]
[Termination "djano won by checkmate"]

1. d4 {[%clk 0:03:00.5]} 1... Nf6 {[%clk 0:03:00.2]} 2. Nf3 {[%clk 0:03:01.7]}
2... c5 {[%clk 0:02:59.5]} 3. c3 {[%clk 0:03:02.7]} 3... g6 {[%clk 0:03:00.4]}
4. Bf4 {[%clk 0:03:03.8]} 4... Bg7 {[%clk 0:03:01.3]} 5. e3 {[%clk 0:03:04.7]}
5... O-O {[%clk 0:03:01.8]} 6. Be2 {[%clk 0:03:06]} 6... b6 {[%clk 0:03:01.4]}
7. O-O {[%clk 0:03:06.7]} 7... Bb7 {[%clk 0:03:02.6]} 8. Nbd2 {[%clk 0:03:06.9]}
8... d6 {[%clk 0:03:03.1]} 9. a4 {[%clk 0:03:07.4]} 9... Nbd7 {[%clk 0:03:02.7]}
10. h3 {[%clk 0:03:06.4]} 10... Nd5 {[%clk 0:02:53.3]} 11. Bh2 {[%clk
0:03:06.5]} 11... cxd4 {[%clk 0:02:54.2]} 12. exd4 {[%clk 0:03:02.7]} 12... f5
{[%clk 0:02:48.9]} 13. Ng5 {[%clk 0:02:58.8]} 13... Rf6 {[%clk 0:02:45.9]} 14.
Qb3 {[%clk 0:02:40]} 14... Kh8 {[%clk 0:02:45.5]} 15. Bc4 {[%clk 0:02:39.8]}
15... Qg8 {[%clk 0:02:45.2]} 16. Rfe1 {[%clk 0:02:28.4]} 16... h6 {[%clk
0:02:43.5]} 17. Ngf3 {[%clk 0:02:28.9]} 17... Re8 {[%clk 0:02:22.9]} 18. Re2
{[%clk 0:02:20.3]} 18... f4 {[%clk 0:02:08.8]} 19. Rae1 {[%clk 0:02:13.5]} 19...
e6 {[%clk 0:02:08.3]} 20. Ne4 {[%clk 0:02:13.9]} 20... Qf8 {[%clk 0:01:55.2]}
21. Nxf6 {[%clk 0:02:03.9]} 21... Qxf6 {[%clk 0:01:57.1]} 22. Nd2 {[%clk
0:01:58.8]} 22... g5 {[%clk 0:01:49.4]} 23. Ne4 {[%clk 0:01:59.8]} 23... Qf8
{[%clk 0:01:50]} 24. Qa3 {[%clk 0:01:50.5]} 24... f3 {[%clk 0:01:48.8]} 25. gxf3
{[%clk 0:01:45.1]} 25... Qxf3 {[%clk 0:01:50.7]} 26. Qxd6 {[%clk 0:01:44.1]}
26... N7f6 {[%clk 0:01:46.2]} 27. Qg3 {[%clk 0:01:34.9]} 27... Qh5 {[%clk
0:01:34.5]} 28. Nd6 {[%clk 0:01:35.5]} 28... Bc6 {[%clk 0:01:18.3]} 29. Nxe8
{[%clk 0:01:30.4]} 29... Nf4 {[%clk 0:01:18.8]} 30. Nxg7 {[%clk 0:01:00.9]}
30... Kxg7 {[%clk 0:01:18.7]} 31. Re3 {[%clk 0:00:48.4]} 31... Qg6 {[%clk
0:01:03.6]} 32. Bxe6 {[%clk 0:00:47.2]} 32... Ne4 {[%clk 0:00:55.9]} 33. Qg4
{[%clk 0:00:34.7]} 33... Nxe6 {[%clk 0:00:57.3]} 34. Be5+ {[%clk 0:00:30.4]}
34... Kg8 {[%clk 0:00:53.5]} 35. Rxe4 {[%clk 0:00:31.7]} 35... h5 {[%clk
0:00:54.4]} 36. Qe2 {[%clk 0:00:26.7]} 36... Qf5 {[%clk 0:00:53.5]} 37. f4
{[%clk 0:00:17.8]} 37... gxf4 {[%clk 0:00:49.1]} 38. Qg2+ {[%clk 0:00:18.8]}
38... Kh7 {[%clk 0:00:48.3]} 39. c4 {[%clk 0:00:12.7]} 39... f3 {[%clk
0:00:48.1]} 40. Qg3 {[%clk 0:00:11.4]} 40... Bxe4 {[%clk 0:00:39.3]} 41. d5
{[%clk 0:00:12.5]} 41... Ng5 {[%clk 0:00:40.2]} 42. h4 {[%clk 0:00:13]} 42...
f2+ {[%clk 0:00:41.6]} 43. Qxf2 {[%clk 0:00:14]} 43... Nh3+ {[%clk 0:00:42.5]}
44. Kf1 {[%clk 0:00:13.8]} 44... Qxf2# {[%clk 0:00:43.5]} 0-1

[Event "*** Titled Tuesday Blitz"]
[Site "Chess.com"]
[Date "2020.02.04"]
[Round "4"]
[White "SlavenPastar"]
[Black "Gabrielian_Artur"]
[Result "0-1"]
[WhiteElo "2487"]
[BlackElo "2768"]
[TimeControl "180+2"]
[EndTime "13:51:19 PST"]
[Termination "Gabrielian_Artur won by resignation"]

1. d4 {[%clk 0:03:01.9]} 1... Nf6 {[%clk 0:03:00.6]} 2. c4 {[%clk 0:03:02.4]}
2... c5 {[%clk 0:03:01.8]} 3. d5 {[%clk 0:02:58]} 3... e6 {[%clk 0:03:02.8]} 4.
Nc3 {[%clk 0:02:58.4]} 4... exd5 {[%clk 0:03:04.3]} 5. cxd5 {[%clk 0:03:00.3]}
5... d6 {[%clk 0:03:05.8]} 6. Nf3 {[%clk 0:02:57.2]} 6... g6 {[%clk 0:03:07.1]}
7. Bg5 {[%clk 0:02:55.3]} 7... Bg7 {[%clk 0:03:04.2]} 8. e3 {[%clk 0:02:53.9]}
8... h6 {[%clk 0:02:58.5]} 9. Bh4 {[%clk 0:02:53.3]} 9... g5 {[%clk 0:02:59]}
10. Bg3 {[%clk 0:02:53.8]} 10... Nh5 {[%clk 0:03:00.3]} 11. Be2 {[%clk
0:02:47.2]} 11... Nxg3 {[%clk 0:02:56.3]} 12. hxg3 {[%clk 0:02:47.9]} 12... a6
{[%clk 0:02:57.7]} 13. a4 {[%clk 0:02:48.4]} 13... Qe7 {[%clk 0:02:58]} 14. Nd2
{[%clk 0:02:40.6]} 14... Nd7 {[%clk 0:02:58]} 15. Nc4 {[%clk 0:02:32.6]} 15...
Ne5 {[%clk 0:02:58.9]} 16. Qb3 {[%clk 0:02:25.2]} 16... Nxc4 {[%clk 0:02:57.6]}
17. Qxc4 {[%clk 0:02:24.5]} 17... Bf5 {[%clk 0:02:52.1]} 18. Bd3 {[%clk
0:01:59.2]} 18... Bd7 {[%clk 0:02:48.2]} 19. Qb3 {[%clk 0:01:49]} 19... Bg4
{[%clk 0:02:27.6]} 20. Be2 {[%clk 0:01:40.2]} 20... Bxe2 {[%clk 0:02:21.5]} 21.
Nxe2 {[%clk 0:01:41]} 21... h5 {[%clk 0:02:18.7]} 22. a5 {[%clk 0:01:33.3]}
22... Rb8 {[%clk 0:01:44.7]} 23. Ra4 {[%clk 0:01:32.8]} 23... Qe5 {[%clk
0:01:43.6]} 24. Nc3 {[%clk 0:01:24.1]} 24... f5 {[%clk 0:01:40.5]} 25. Rc4
{[%clk 0:01:00.4]} 25... Kf7 {[%clk 0:01:31.4]} 26. Qd1 {[%clk 0:00:57.2]} 26...
Kg6 {[%clk 0:01:32]} 27. Ra4 {[%clk 0:00:52.3]} 27... b5 {[%clk 0:01:29.4]} 28.
axb6 {[%clk 0:00:48.6]} 28... Rxb6 {[%clk 0:01:30.9]} 29. Ra2 {[%clk 0:00:46.8]}
29... g4 {[%clk 0:01:23.3]} 30. Qd3 {[%clk 0:00:45]} 30... Rhb8 {[%clk
0:01:13.9]} 31. Ne2 {[%clk 0:00:28]} 31... Qe4 {[%clk 0:01:14.5]} 32. Nf4+
{[%clk 0:00:28.4]} 32... Kf7 {[%clk 0:01:15]} 33. Qxe4 {[%clk 0:00:24]} 33...
fxe4 {[%clk 0:01:15.9]} 34. Rxh5 {[%clk 0:00:24.6]} 34... Rxb2 {[%clk
0:01:16.9]} 35. Rxb2 {[%clk 0:00:19]} 35... Rxb2 {[%clk 0:01:17.8]} 36. Rf5+
{[%clk 0:00:14.6]} 36... Ke8 {[%clk 0:01:18.8]} 37. Rg5 {[%clk 0:00:13.2]} 37...
Bc3+ {[%clk 0:01:19.5]} 38. Kd1 {[%clk 0:00:14.2]} 38... a5 {[%clk 0:01:18.6]}
39. Rxg4 {[%clk 0:00:13]} 39... a4 {[%clk 0:01:19.3]} 40. Rg8+ {[%clk
0:00:14.6]} 40... Kf7 {[%clk 0:01:19.9]} 41. Ra8 {[%clk 0:00:16.5]} 41... Ra2
{[%clk 0:01:05.4]} 42. f3 {[%clk 0:00:14.9]} 42... a3 {[%clk 0:00:59.5]} 43.
fxe4 {[%clk 0:00:12.4]} 43... Rd2+ {[%clk 0:01:00.4]} 44. Kc1 {[%clk 0:00:06.9]}
44... a2 {[%clk 0:01:01.8]} 45. Ra7+ {[%clk 0:00:08.5]} 45... Kf6 {[%clk
0:00:58.6]} 46. e5+ {[%clk 0:00:05.3]} 46... dxe5 {[%clk 0:00:59.6]} 47. Nd3
{[%clk 0:00:06]} 47... Rxd3 {[%clk 0:00:59.3]} 48. Kc2 {[%clk 0:00:07.5]} 48...
Rxe3 {[%clk 0:00:58.5]} 49. d6 {[%clk 0:00:08]} 49... Ke6 {[%clk 0:00:58]} 50.
d7 {[%clk 0:00:08.8]} 50... Ke7 {[%clk 0:00:59.4]} 51. Rxa2 {[%clk 0:00:07.7]}
51... Re2+ {[%clk 0:01:00]} 0-1

[Event "*** Titled Tuesday Blitz"]
[Site "Chess.com"]
[Date "2020.02.04"]
[Round "4"]
[White "MikeSailer"]
[Black "Everyfishknows"]
[Result "0-1"]
[WhiteElo "2115"]
[BlackElo "2328"]
[TimeControl "180+2"]
[EndTime "13:51:19 PST"]
[Termination "Everyfishknows won on time"]

1. Nf3 {[%clk 0:03:01.9]} 1... Nf6 {[%clk 0:02:48.3]} 2. b4 {[%clk 0:03:01.8]}
2... e6 {[%clk 0:02:46.3]} 3. a3 {[%clk 0:03:01.3]} 3... a5 {[%clk 0:02:44.7]}
4. b5 {[%clk 0:03:01.8]} 4... d5 {[%clk 0:02:41.1]} 5. Bb2 {[%clk 0:03:02.7]}
5... Nbd7 {[%clk 0:02:41.4]} 6. e3 {[%clk 0:03:03.4]} 6... c5 {[%clk 0:02:41.1]}
7. Be2 {[%clk 0:03:04.5]} 7... Bd6 {[%clk 0:02:38.7]} 8. O-O {[%clk 0:03:05.8]}
8... O-O {[%clk 0:02:39.6]} 9. c4 {[%clk 0:03:07.1]} 9... b6 {[%clk 0:02:30.6]}
10. d4 {[%clk 0:03:07.7]} 10... Bb7 {[%clk 0:02:29.9]} 11. Nbd2 {[%clk
0:03:06.6]} 11... Qe7 {[%clk 0:02:23.9]} 12. a4 {[%clk 0:02:58.4]} 12... Rfd8
{[%clk 0:02:22.3]} 13. Rc1 {[%clk 0:02:54.1]} 13... Rac8 {[%clk 0:02:23.1]} 14.
h3 {[%clk 0:02:53.5]} 14... cxd4 {[%clk 0:02:13.6]} 15. Nxd4 {[%clk 0:02:50.3]}
15... Nc5 {[%clk 0:02:11.4]} 16. Bf3 {[%clk 0:02:35.9]} 16... Nd3 {[%clk
0:01:49.5]} 17. Qb3 {[%clk 0:02:35.2]} 17... Nxc1 {[%clk 0:01:46.4]} 18. Rxc1
{[%clk 0:02:33.2]} 18... Bb4 {[%clk 0:01:39.5]} 19. Nb1 {[%clk 0:01:46.7]} 19...
dxc4 {[%clk 0:01:35.8]} 20. Rxc4 {[%clk 0:01:46.8]} 20... Rxc4 {[%clk 0:01:35]}
21. Qxc4 {[%clk 0:01:48.1]} 21... Rc8 {[%clk 0:01:35.3]} 22. Nc6 {[%clk
0:01:39.9]} 22... Bxc6 {[%clk 0:01:10.8]} 23. bxc6 {[%clk 0:01:37.2]} 23... Nd5
{[%clk 0:00:47.9]} 24. e4 {[%clk 0:01:04.4]} 24... Nf6 {[%clk 0:00:39.8]} 25.
Nc3 {[%clk 0:00:59.4]} 25... Bxc3 {[%clk 0:00:40.4]} 26. Bxc3 {[%clk 0:01:00.4]}
26... Qc7 {[%clk 0:00:32.5]} 27. Bxf6 {[%clk 0:00:55.1]} 27... gxf6 {[%clk
0:00:34.4]} 28. e5 {[%clk 0:00:46.8]} 28... Qxe5 {[%clk 0:00:35.4]} 29. Qg4+
{[%clk 0:00:40.2]} 29... Kh8 {[%clk 0:00:32.2]} 30. Qh4 {[%clk 0:00:24.9]} 30...
Rg8 {[%clk 0:00:23.2]} 31. g3 {[%clk 0:00:17]} 31... Rg6 {[%clk 0:00:20.9]} 32.
Kg2 {[%clk 0:00:17]} 32... Kg7 {[%clk 0:00:21.6]} 33. Qc4 {[%clk 0:00:16.6]}
33... Qc7 {[%clk 0:00:21.6]} 34. h4 {[%clk 0:00:14]} 34... f5 {[%clk 0:00:21.8]}
35. Qd4+ {[%clk 0:00:12.3]} 35... e5 {[%clk 0:00:22.3]} 36. Qd5 {[%clk
0:00:07.8]} 36... e4 {[%clk 0:00:21]} 37. Bh5 {[%clk 0:00:07.9]} 37... Qxc6
{[%clk 0:00:19.3]} 38. Qxf5 {[%clk 0:00:07.1]} 38... Rf6 {[%clk 0:00:16.6]} 39.
Qg5+ {[%clk 0:00:07.5]} 39... Kh8 {[%clk 0:00:17.9]} 40. Kg1 {[%clk 0:00:06.7]}
40... Qe6 {[%clk 0:00:12.2]} 41. Qe3 {[%clk 0:00:03.9]} 41... Kg7 {[%clk
0:00:11.2]} 42. Qxe4 {[%clk 0:00:04.8]} 42... Qxe4 {[%clk 0:00:12.1]} 0-1

[Event "*** Titled Tuesday Blitz"]
[Site "Chess.com"]
[Date "2020.02.04"]
[Round "4"]
[White "renehp"]
[Black "bait_or_mate"]
[Result "0-1"]
[WhiteElo "2361"]
[BlackElo "2522"]
[TimeControl "180+2"]
[EndTime "13:51:20 PST"]
[Termination "bait_or_mate won by resignation"]

1. e4 {[%clk 0:02:58.7]} 1... c5 {[%clk 0:03:01]} 2. Nf3 {[%clk 0:02:59.8]} 2...
e6 {[%clk 0:03:01.9]} 3. d4 {[%clk 0:03:00.7]} 3... cxd4 {[%clk 0:03:03.8]} 4.
Nxd4 {[%clk 0:03:01.8]} 4... Nc6 {[%clk 0:03:05.2]} 5. Nc3 {[%clk 0:03:02.4]}
5... Qc7 {[%clk 0:03:06.2]} 6. Be3 {[%clk 0:03:03.7]} 6... a6 {[%clk 0:03:07.1]}
7. Bd3 {[%clk 0:03:05]} 7... Nf6 {[%clk 0:03:07.6]} 8. O-O {[%clk 0:03:06.2]}
8... Ne5 {[%clk 0:03:09.2]} 9. f4 {[%clk 0:03:07.1]} 9... Neg4 {[%clk
0:03:10.4]} 10. Bd2 {[%clk 0:02:54.9]} 10... Bc5 {[%clk 0:03:11.3]} 11. Ne2
{[%clk 0:02:53.2]} 11... e5 {[%clk 0:03:12.8]} 12. fxe5 {[%clk 0:02:52.7]} 12...
d5 {[%clk 0:03:14.2]} 13. exd5 {[%clk 0:02:44.9]} 13... Nxd5 {[%clk 0:03:00.9]}
14. Qe1 {[%clk 0:02:36.9]} 14... Qxe5 {[%clk 0:02:54.1]} 15. Qg3 {[%clk
0:01:53.7]} 15... Bxd4+ {[%clk 0:02:54]} 16. Nxd4 {[%clk 0:01:54.6]} 16... Qxd4+
{[%clk 0:02:55.9]} 17. Kh1 {[%clk 0:01:56]} 17... O-O {[%clk 0:02:50.7]} 18. h3
{[%clk 0:01:40.2]} 18... Nge3 {[%clk 0:02:33.9]} 19. Rf3 {[%clk 0:01:26]} 19...
Nf5 {[%clk 0:02:08.7]} 20. Qh2 {[%clk 0:00:20.5]} 20... Nh4 {[%clk 0:02:01.6]}
21. Rg3 {[%clk 0:00:13.7]} 21... Ng6 {[%clk 0:02:00.6]} 22. Rf1 {[%clk
0:00:14.8]} 22... Be6 {[%clk 0:01:58.5]} 23. c4 {[%clk 0:00:14.2]} 23... Nde7
{[%clk 0:01:45.1]} 24. Bc3 {[%clk 0:00:14.6]} 24... Qd6 {[%clk 0:01:41.9]} 25.
h4 {[%clk 0:00:14.1]} 25... h5 {[%clk 0:01:35.8]} 26. Be2 {[%clk 0:00:08.7]}
26... Nf5 {[%clk 0:01:30.7]} 27. Rg5 {[%clk 0:00:04.6]} 27... Qxh2+ {[%clk
0:01:30.5]} 28. Kxh2 {[%clk 0:00:06.2]} 28... Ne3 {[%clk 0:01:25.6]} 29. Rf3
{[%clk 0:00:03.1]} 29... Ng4+ {[%clk 0:01:27.1]} 30. Kg3 {[%clk 0:00:04.5]}
30... Rac8 {[%clk 0:01:17.4]} 31. Bd3 {[%clk 0:00:05.6]} 31... Bxc4 {[%clk
0:00:50.2]} 32. Bxg6 {[%clk 0:00:06.4]} 32... fxg6 {[%clk 0:00:52]} 33. Rxg6
{[%clk 0:00:07.8]} 33... Rc7 {[%clk 0:00:52.1]} 34. Rg5 {[%clk 0:00:06.1]} 34...
Be2 {[%clk 0:00:36.5]} 35. Rxf8+ {[%clk 0:00:05.1]} 35... Kxf8 {[%clk
0:00:38.4]} 36. Rxh5 {[%clk 0:00:06.3]} 36... Nf6 {[%clk 0:00:39]} 37. Re5
{[%clk 0:00:07.6]} 37... Bc4 {[%clk 0:00:36.1]} 38. Kf3 {[%clk 0:00:07]} 38...
Rd7 {[%clk 0:00:35.2]} 39. g4 {[%clk 0:00:07.7]} 39... Bd5+ {[%clk 0:00:34.8]}
40. Kf4 {[%clk 0:00:08.6]} 40... Bf7 {[%clk 0:00:35.7]} 41. g5 {[%clk
0:00:09.6]} 41... Nd5+ {[%clk 0:00:36.9]} 42. Kf5 {[%clk 0:00:09]} 42... Nxc3
{[%clk 0:00:38.1]} 43. bxc3 {[%clk 0:00:10.4]} 43... g6+ {[%clk 0:00:39.6]} 44.
Kf6 {[%clk 0:00:11.3]} 44... Rd6+ {[%clk 0:00:40.3]} 0-1

[Event "*** Titled Tuesday Blitz"]
[Site "Chess.com"]
[Date "2020.02.04"]
[Round "4"]
[White "amiralfio"]
[Black "Abund"]
[Result "0-1"]
[WhiteElo "2523"]
[BlackElo "2729"]
[TimeControl "180+2"]
[EndTime "13:51:21 PST"]
[Termination "Abund won by resignation"]

1. d4 {[%clk 0:02:59.3]} 1... Nf6 {[%clk 0:03:01.1]} 2. Bf4 {[%clk 0:02:59.7]}
2... g6 {[%clk 0:03:01.5]} 3. Nc3 {[%clk 0:02:58.2]} 3... d5 {[%clk 0:03:00.9]}
4. e3 {[%clk 0:02:58.9]} 4... Bg7 {[%clk 0:03:01.2]} 5. h4 {[%clk 0:02:59.5]}
5... h5 {[%clk 0:03:02.2]} 6. Nf3 {[%clk 0:02:59.8]} 6... Bf5 {[%clk 0:02:38.7]}
7. Ne5 {[%clk 0:02:59.8]} 7... Nbd7 {[%clk 0:02:34.1]} 8. f3 {[%clk 0:02:48.9]}
8... c6 {[%clk 0:02:29.9]} 9. Be2 {[%clk 0:02:46.6]} 9... Nxe5 {[%clk
0:02:15.5]} 10. Bxe5 {[%clk 0:02:46]} 10... Be6 {[%clk 0:02:13.7]} 11. g4 {[%clk
0:02:40.9]} 11... Kf8 {[%clk 0:02:10.9]} 12. g5 {[%clk 0:02:29.5]} 12... Nd7
{[%clk 0:02:00.1]} 13. Bxg7+ {[%clk 0:02:29.6]} 13... Kxg7 {[%clk 0:02:01.2]}
14. Qd2 {[%clk 0:02:30.8]} 14... b5 {[%clk 0:01:55.8]} 15. e4 {[%clk 0:02:30.1]}
15... b4 {[%clk 0:01:51.9]} 16. Na4 {[%clk 0:02:30.4]} 16... Qa5 {[%clk
0:01:51.6]} 17. b3 {[%clk 0:02:30.9]} 17... Rab8 {[%clk 0:01:44.6]} 18. a3
{[%clk 0:02:11.9]} 18... Qc7 {[%clk 0:01:40]} 19. axb4 {[%clk 0:01:52.7]} 19...
Qg3+ {[%clk 0:01:40.7]} 20. Kd1 {[%clk 0:01:54.1]} 20... dxe4 {[%clk 0:01:32]}
21. fxe4 {[%clk 0:01:54.8]} 21... Qg2 {[%clk 0:01:32.6]} 22. Re1 {[%clk
0:01:48.2]} 22... Qxe4 {[%clk 0:01:32.3]} 23. Bc4 {[%clk 0:01:34.8]} 23... Qg4+
{[%clk 0:01:24]} 24. Kc1 {[%clk 0:01:35.5]} 24... Bxc4 {[%clk 0:01:12.2]} 25.
bxc4 {[%clk 0:01:37.4]} 25... Rhe8 {[%clk 0:01:08.8]} 26. Nc5 {[%clk 0:01:05.6]}
26... Nxc5 {[%clk 0:01:03.5]} 27. bxc5 {[%clk 0:01:05.7]} 27... Rb7 {[%clk
0:00:59.6]} 28. Qf2 {[%clk 0:00:55.7]} 28... Rd8 {[%clk 0:00:45.6]} 29. Rd1
{[%clk 0:00:42.3]} 29... Rbd7 {[%clk 0:00:36.6]} 30. c3 {[%clk 0:00:39.3]} 30...
e5 {[%clk 0:00:37.7]} 31. Qf6+ {[%clk 0:00:39.1]} 31... Kg8 {[%clk 0:00:38.8]}
32. Qxe5 {[%clk 0:00:38.6]} 32... Qxh4 {[%clk 0:00:38.1]} 33. Ra2 {[%clk
0:00:34.9]} 33... Qh3 {[%clk 0:00:36.2]} 34. Rc2 {[%clk 0:00:27.5]} 34... Rb7
{[%clk 0:00:32.3]} 35. d5 {[%clk 0:00:24.4]} 35... Rdb8 {[%clk 0:00:28.4]} 36.
dxc6 {[%clk 0:00:13]} 36... Rb1+ {[%clk 0:00:27.5]} 37. Kd2 {[%clk 0:00:13.5]}
37... Rd8+ {[%clk 0:00:26.7]} 38. Qd6 {[%clk 0:00:10.2]} 38... Rxd6+ {[%clk
0:00:20.1]} 39. cxd6 {[%clk 0:00:12.1]} 39... Qh2+ {[%clk 0:00:20.4]} 40. Ke3
{[%clk 0:00:08.3]} 40... Qe5+ {[%clk 0:00:20.7]} 41. Kf2 {[%clk 0:00:08.1]}
41... Rxd1 {[%clk 0:00:20.1]} 42. c7 {[%clk 0:00:07.4]} 42... Qc5+ {[%clk
0:00:21.2]} 43. Ke2 {[%clk 0:00:07.1]} 43... Rxd6 {[%clk 0:00:21.9]} 0-1

[Event "*** Titled Tuesday Blitz"]
[Site "Chess.com"]
[Date "2020.02.04"]
[Round "4"]
[White "Teidi96"]
[Black "ZenBull"]
[Result "1-0"]
[WhiteElo "2297"]
[BlackElo "2095"]
[TimeControl "180+2"]
[EndTime "13:51:21 PST"]
[Termination "Teidi96 won by resignation"]

1. e4 {[%clk 0:03:01.9]} 1... c5 {[%clk 0:03:00.5]} 2. Nf3 {[%clk 0:03:02.3]}
2... e6 {[%clk 0:03:01.5]} 3. c3 {[%clk 0:03:02.1]} 3... Nf6 {[%clk 0:03:01.9]}
4. e5 {[%clk 0:03:01.2]} 4... Nd5 {[%clk 0:03:02.9]} 5. d4 {[%clk 0:03:03.1]}
5... cxd4 {[%clk 0:03:02.4]} 6. cxd4 {[%clk 0:03:04]} 6... b6 {[%clk 0:03:02.7]}
7. Bc4 {[%clk 0:02:59.9]} 7... Bb7 {[%clk 0:03:03.1]} 8. O-O {[%clk 0:02:58.3]}
8... Be7 {[%clk 0:03:02.4]} 9. Nc3 {[%clk 0:02:52.1]} 9... Nxc3 {[%clk
0:03:02.8]} 10. bxc3 {[%clk 0:02:53.7]} 10... O-O {[%clk 0:03:00.1]} 11. Qe2
{[%clk 0:02:50.8]} 11... Qc7 {[%clk 0:02:55.2]} 12. Bf4 {[%clk 0:02:42.7]} 12...
Nc6 {[%clk 0:02:25.3]} 13. Bd3 {[%clk 0:02:42.5]} 13... Na5 {[%clk 0:02:24.7]}
14. Rac1 {[%clk 0:02:40]} 14... Rac8 {[%clk 0:02:20.8]} 15. Ng5 {[%clk
0:02:37.9]} 15... h6 {[%clk 0:02:14]} 16. Ne4 {[%clk 0:02:31.1]} 16... f5 {[%clk
0:02:00.4]} 17. exf6 {[%clk 0:02:29.6]} 17... Qxf4 {[%clk 0:02:00.5]} 18. fxe7
{[%clk 0:02:29]} 18... Rf7 {[%clk 0:01:53.5]} 19. g3 {[%clk 0:02:24.8]} 19...
Qb8 {[%clk 0:01:47.9]} 20. Qh5 {[%clk 0:02:18]} 20... Rxe7 {[%clk 0:01:45.1]}
21. Qg6 {[%clk 0:02:16.1]} 21... Rf8 {[%clk 0:01:33.6]} 22. Nd2 {[%clk
0:02:01.4]} 22... Rf6 {[%clk 0:01:27.1]} 23. Qh7+ {[%clk 0:01:59.1]} 23... Kf7
{[%clk 0:01:28.3]} 24. Be2 {[%clk 0:01:46]} 24... Qg8 {[%clk 0:01:17.2]} 25. Qd3
{[%clk 0:01:46.6]} 25... g6 {[%clk 0:01:08.1]} 26. f4 {[%clk 0:01:41]} 26... Kg7
{[%clk 0:01:07.6]} 27. c4 {[%clk 0:01:37.6]} 27... Kh8 {[%clk 0:00:49]} 28. Bf3
{[%clk 0:01:36]} 28... d6 {[%clk 0:00:31.1]} 29. Rce1 {[%clk 0:01:28.9]} 29...
Bxf3 {[%clk 0:00:18]} 30. Rxf3 {[%clk 0:01:30.8]} 30... Qf7 {[%clk 0:00:17]} 31.
Ne4 {[%clk 0:01:27.6]} 31... Rf5 {[%clk 0:00:17.1]} 32. Nxd6 {[%clk 0:01:28.6]}
32... Qf6 {[%clk 0:00:17.2]} 33. Nxf5 {[%clk 0:01:29]} 33... exf5 {[%clk
0:00:19.1]} 34. Rxe7 {[%clk 0:01:29.6]} 34... Qxe7 {[%clk 0:00:21]} 35. Re3
{[%clk 0:01:31.1]} 35... Qb4 {[%clk 0:00:21.4]} 36. Re8+ {[%clk 0:01:29.3]}
36... Kg7 {[%clk 0:00:22.2]} 37. Qe2 {[%clk 0:01:31]} 37... Nxc4 {[%clk
0:00:21.1]} 38. Qe7+ {[%clk 0:01:29.8]} 38... Qxe7 {[%clk 0:00:21.4]} 39. Rxe7+
{[%clk 0:01:31.7]} 39... Kf6 {[%clk 0:00:23.1]} 40. Rxa7 {[%clk 0:01:33.5]}
40... g5 {[%clk 0:00:22.4]} 41. Kf2 {[%clk 0:01:32.3]} 41... gxf4 {[%clk
0:00:22.6]} 42. gxf4 {[%clk 0:01:33.4]} 42... Ke6 {[%clk 0:00:23.3]} 43. Ke2
{[%clk 0:01:32.5]} 43... Kd5 {[%clk 0:00:24.7]} 44. Kd3 {[%clk 0:01:27.3]} 44...
Nb2+ {[%clk 0:00:22.8]} 45. Kc3 {[%clk 0:01:27]} 45... Nd1+ {[%clk 0:00:23.4]}
46. Kd2 {[%clk 0:01:28]} 46... Nf2 {[%clk 0:00:23.1]} 47. Ra6 {[%clk 0:01:21.4]}
47... Kxd4 {[%clk 0:00:15.6]} 48. Rxb6 {[%clk 0:01:21.4]} 48... Ke4 {[%clk
0:00:13.7]} 49. Rxh6 {[%clk 0:01:21.4]} 49... Kxf4 {[%clk 0:00:14.9]} 50. a4
{[%clk 0:01:21.5]} 50... Ne4+ {[%clk 0:00:14]} 51. Ke1 {[%clk 0:01:18.8]} 51...
Ke3 {[%clk 0:00:14.7]} 52. Re6 {[%clk 0:01:17.2]} 52... f4 {[%clk 0:00:15.5]}
53. h4 {[%clk 0:01:12.6]} 53... f3 {[%clk 0:00:16.9]} 54. Rxe4+ {[%clk
0:01:09.8]} 54... Kxe4 {[%clk 0:00:17.7]} 55. Kf2 {[%clk 0:01:10.7]} 1-0